[Event "Skol-SM i Schack 2024, Grupp A"]
[Site "Arena Varberg, Kattegattsvagen 26, Varberg, Sweden"]
[Date "2024.10.12"]
[Round "6.1"]
[White "Johansson, William"]
[Black "Joensson, Oscar"]
[Result "1/2-1/2"]
[TimeControl "45 minutes + 10 seconds per move from move one."]
[WhiteFideId "1744070"]
[BlackFideId "1729977"]
[WhiteElo "1971"]
[BlackElo "1955"]

1. e4 {[%clk 00:44:46]} {[%emt 00:00:29]} c6 {[%clk 00:45:18]} {[%emt
00:00:03]} 2. Nf3 {[%clk 00:44:52]} {[%emt 00:00:04]} d5 {[%clk 00:45:27]}
{[%emt 00:00:02]} 3. d3 {[%clk 00:44:20]} {[%emt 00:00:42]} dxe4 {[%clk
00:45:35]} {[%emt 00:00:02]} 4. dxe4 {[%clk 00:44:29]} Qxd1+ {[%clk 00:45:44]}
{[%emt 00:00:01]} 5. Kxd1 {[%clk 00:44:37]} {[%emt 00:00:02]} Nf6 {[%clk
00:45:52]} {[%emt 00:00:01]} 6. Nbd2 {[%clk 00:44:45]} {[%emt 00:00:02]} Bg4
{[%clk 00:44:04]} {[%emt 00:01:59]} 7. Be2 {[%clk 00:44:52]} {[%emt 00:00:03]}
Nbd7 {[%clk 00:43:48]} {[%emt 00:00:26]} 8. Ne1 {[%clk 00:40:15]} {[%emt
00:04:47]} g6 {[%clk 00:41:51]} {[%emt 00:02:07]} 9. f3 {[%clk 00:38:55]}
{[%emt 00:01:30]} Be6 {[%clk 00:41:58]} {[%emt 00:00:03]} 10. Nd3 {[%clk
00:38:51]} {[%emt 00:00:14]} Bg7 {[%clk 00:41:45]} {[%emt 00:00:24]} 11. c3
{[%clk 00:36:24]} {[%emt 00:02:36]} O-O-O {[%clk 00:34:04]} {[%emt 00:07:50]}
12. Kc2 {[%clk 00:33:53]} {[%emt 00:02:41]} g5 {[%clk 00:33:13]} {[%emt
00:01:01]} 13. Nb3 {[%clk 00:32:57]} {[%emt 00:01:06]} h6 {[%clk 00:32:22]}
{[%emt 00:01:01]} 14. Ndc5 {[%clk 00:30:28]} {[%emt 00:02:39]} Nxc5 {[%clk
00:28:45]} {[%emt 00:03:47]} 15. Nxc5 {[%clk 00:30:33]} {[%emt 00:00:05]} Bd7
{[%clk 00:28:41]} {[%emt 00:00:14]} 16. a4 {[%clk 00:19:50]} {[%emt 00:10:54]}
a5 {[%clk 00:24:44]} {[%emt 00:04:06]} 17. Be3 {[%clk 00:11:54]} {[%emt
00:08:06]} b6 {[%clk 00:23:07]} {[%emt 00:01:48]} 18. Nxd7 {[%clk 00:10:36]}
{[%emt 00:01:27]} Nxd7 {[%clk 00:23:15]} {[%emt 00:00:02]} 19. h4 {[%clk
00:10:26]} {[%emt 00:00:20]} Bf6 {[%clk 00:22:24]} {[%emt 00:01:01]} 20. hxg5
{[%clk 00:09:41]} {[%emt 00:00:55]} hxg5 {[%clk 00:22:28]} {[%emt 00:00:06]} 21.
g3 {[%clk 00:09:16]} {[%emt 00:00:35]} Nc5 {[%clk 00:19:11]} {[%emt 00:03:27]}
22. Bxc5 {[%clk 00:07:07]} {[%emt 00:02:20]} bxc5 {[%clk 00:19:19]} {[%emt
00:00:01]} 23. Bc4 {[%clk 00:06:17]} {[%emt 00:01:00]} e6 {[%clk 00:14:22]}
{[%emt 00:05:08]} 24. f4 {[%clk 00:06:24]} {[%emt 00:00:02]} gxf4 {[%clk
00:09:56]} {[%emt 00:04:36]} 25. gxf4 {[%clk 00:06:32]} {[%emt 00:00:01]} Rxh1
{[%clk 00:10:05]} {[%emt 00:00:02]} 26. Rxh1 {[%clk 00:06:40]} {[%emt
00:00:02]} Rh8 {[%clk 00:10:14]} 27. Rxh8+ {[%clk 00:03:29]} {[%emt 00:03:22]}
Bxh8 {[%clk 00:10:23]} {[%emt 00:00:01]} 28. Kd3 {[%clk 00:02:55]} {[%emt
00:00:44]} Kd7 {[%clk 00:09:33]} {[%emt 00:01:00]} 29. Ke3 {[%clk 00:02:26]}
{[%emt 00:00:38]} f6 {[%clk 00:09:06]} {[%emt 00:00:39]} 30. Kf3 {[%clk
00:02:03]} {[%emt 00:00:32]} e5 {[%clk 00:08:34]} {[%emt 00:00:42]} 31. f5
{[%clk 00:02:05]} {[%emt 00:00:09]} Bg7 {[%clk 00:08:41]} {[%emt 00:00:02]} 32.
Kg4 {[%clk 00:02:05]} {[%emt 00:00:09]} Bh6 {[%clk 00:08:49]} {[%emt 00:00:02]}
33. Kh5 {[%clk 00:01:15]} {[%emt 00:01:00]} Bc1 {[%clk 00:08:56]} {[%emt
00:00:03]} 34. b3 {[%clk 00:01:18]} {[%emt 00:00:08]} Bd2 {[%clk 00:09:04]}
{[%emt 00:00:03]} 35. Be6+ {[%clk 00:01:02]} {[%emt 00:00:25]} Ke7 {[%clk
00:09:12]} {[%emt 00:00:02]} 36. c4 {[%clk 00:01:10]} {[%emt 00:00:02]} Be3
{[%clk 00:09:19]} {[%emt 00:00:03]} 1/2-1/2

[Event "Skol-SM i Schack 2024, Grupp A"]
[Site "Arena Varberg, Kattegattsvagen 26, Varberg, Sweden"]
[Date "2024.10.12"]
[Round "4.10"]
[White "Savela, Julina"]
[Black "Sniegon, Filip"]
[Result "1-0"]
[TimeControl "45 minutes + 10 seconds per move from move one."]
[WhiteFideId "1767437"]
[BlackFideId "1778277"]
[WhiteElo "1682"]
[BlackElo "1684"]

1. d4 {[%clk 00:45:14]} {[%emt 00:00:06]} d5 {[%clk 00:45:17]} {[%emt
00:00:02]} 2. Nc3 {[%clk 00:45:03]} {[%emt 00:00:22]} e6 {[%clk 00:45:18]}
{[%emt 00:00:10]} 3. e4 {[%clk 00:45:05]} {[%emt 00:00:08]} dxe4 {[%clk
00:44:52]} {[%emt 00:00:35]} 4. Nxe4 {[%clk 00:45:07]} {[%emt 00:00:08]} Nc6
{[%clk 00:44:43]} {[%emt 00:00:20]} 5. Bb5 {[%clk 00:43:39]} {[%emt 00:01:38]}
Bd7 {[%clk 00:44:11]} {[%emt 00:00:41]} 6. Nf3 {[%clk 00:42:15]} {[%emt
00:01:34]} a6 {[%clk 00:43:39]} {[%emt 00:00:43]} 7. Bc4 {[%clk 00:41:57]}
{[%emt 00:00:28]} Be7 {[%clk 00:42:54]} {[%emt 00:00:55]} 8. a3 {[%clk
00:39:40]} {[%emt 00:02:27]} Nf6 {[%clk 00:42:18]} {[%emt 00:00:45]} 9. Nxf6+
{[%clk 00:38:41]} {[%emt 00:01:09]} Bxf6 {[%clk 00:42:26]} {[%emt 00:00:02]} 10.
O-O {[%clk 00:37:16]} {[%emt 00:01:35]} O-O {[%clk 00:41:40]} {[%emt 00:00:57]}
11. Bf4 {[%clk 00:35:26]} {[%emt 00:01:58]} b5 {[%clk 00:37:30]} {[%emt
00:04:21]} 12. Ba2 {[%clk 00:35:10]} {[%emt 00:00:26]} Re8 {[%clk 00:37:35]}
{[%emt 00:00:05]} 13. d5 {[%clk 00:34:36]} {[%emt 00:00:44]} exd5 {[%clk
00:36:37]} {[%emt 00:01:08]} 14. Qxd5 {[%clk 00:33:25]} {[%emt 00:01:21]} Re7
{[%clk 00:30:44]} {[%emt 00:06:03]} 15. Rfe1 {[%clk 00:30:43]} {[%emt
00:02:52]} Rc8 {[%clk 00:23:25]} {[%emt 00:07:29]} 16. Rxe7 {[%clk 00:30:20]}
{[%emt 00:00:33]} Qxe7 {[%clk 00:22:55]} {[%emt 00:00:40]} 17. Re1 {[%clk
00:30:12]} {[%emt 00:00:17]} Qd8 {[%clk 00:21:30]} {[%emt 00:01:36]} 18. Qxf7+
{[%clk 00:30:07]} {[%emt 00:00:15]} Kh8 {[%clk 00:21:39]} {[%emt 00:00:01]} 19.
Rd1 {[%clk 00:28:07]} {[%emt 00:02:10]} Be6 {[%clk 00:18:12]} {[%emt 00:03:37]}
20. Rxd8+ {[%clk 00:27:50]} {[%emt 00:00:28]} Rxd8 {[%clk 00:18:20]} {[%emt
00:00:02]} 21. Qxe6 {[%clk 00:27:42]} {[%emt 00:00:17]} 1-0

[Event "Skol-SM i Schack 2024, Grupp A"]
[Site "Arena Varberg, Kattegattsvagen 26, Varberg, Sweden"]
[Date "2024.10.12"]
[Round "6.2"]
[White "Kleist, Axel"]
[Black "Frank, Anton"]
[Result "0-1"]
[TimeControl "45 minutes + 10 seconds per move from move one."]
[BlackTitle "CM"]
[WhiteFideId "1764322"]
[BlackFideId "1752383"]
[WhiteElo "1912"]
[BlackElo "2110"]

1. e4 {[%clk 00:45:18]} {[%emt 00:00:02]} e5 {[%clk 00:45:01]} {[%emt
00:00:19]} 2. Nf3 {[%clk 00:45:24]} {[%emt 00:00:05]} Nc6 {[%clk 00:45:09]}
{[%emt 00:00:01]} 3. Bc4 {[%clk 00:45:27]} {[%emt 00:00:08]} Nf6 {[%clk
00:45:17]} {[%emt 00:00:01]} 4. d3 {[%clk 00:45:30]} {[%emt 00:00:08]} h6
{[%clk 00:45:25]} {[%emt 00:00:02]} 5. O-O {[%clk 00:44:54]} {[%emt 00:00:46]}
d6 {[%clk 00:45:33]} {[%emt 00:00:02]} 6. c3 {[%clk 00:43:23]} {[%emt
00:01:41]} g5 {[%clk 00:45:36]} {[%emt 00:00:05]} 7. a4 {[%clk 00:38:07]}
{[%emt 00:05:27]} Bg7 {[%clk 00:45:20]} {[%emt 00:00:26]} 8. b4 {[%clk
00:36:45]} {[%emt 00:01:32]} O-O {[%clk 00:42:41]} {[%emt 00:02:49]} 9. Re1
{[%clk 00:33:39]} {[%emt 00:03:17]} a6 {[%clk 00:39:12]} {[%emt 00:03:39]} 10.
Na3 {[%clk 00:31:25]} {[%emt 00:02:24]} d5 {[%clk 00:34:30]} {[%emt 00:04:51]}
11. exd5 {[%clk 00:31:18]} {[%emt 00:00:17]} Nxd5 {[%clk 00:34:38]} {[%emt
00:00:02]} 12. Qb3 {[%clk 00:31:09]} {[%emt 00:00:19]} Be6 {[%clk 00:34:20]}
{[%emt 00:00:29]} 13. Bb2 {[%clk 00:29:35]} {[%emt 00:01:43]} Re8 {[%clk
00:33:45]} {[%emt 00:00:46]} 14. Nc2 {[%clk 00:24:46]} {[%emt 00:04:59]} f5
{[%clk 00:29:23]} {[%emt 00:04:31]} 15. Ne3 {[%clk 00:23:54]} {[%emt 00:01:02]}
Nf4 {[%clk 00:26:07]} {[%emt 00:03:27]} 16. Nxf5 {[%clk 00:22:46]} {[%emt
00:01:18]} Qf6 {[%clk 00:24:10]} {[%emt 00:02:07]} 17. Nxg7 {[%clk 00:21:09]}
{[%emt 00:01:47]} Kxg7 {[%clk 00:24:19]} {[%emt 00:00:01]} 18. Bxe6 {[%clk
00:21:03]} {[%emt 00:00:16]} Rxe6 {[%clk 00:24:06]} {[%emt 00:00:23]} 19. c4
{[%clk 00:18:43]} {[%emt 00:02:30]} Rf8 {[%clk 00:22:00]} {[%emt 00:02:16]} 20.
Qc3 {[%clk 00:04:45]} {[%emt 00:14:08]} Nxg2 {[%clk 00:14:10]} {[%emt
00:07:59]} 21. Nxe5 {[%clk 00:03:17]} {[%emt 00:01:38]} Nxe1 {[%clk 00:12:20]}
{[%emt 00:02:00]} 22. Nxc6 {[%clk 00:01:59]} {[%emt 00:01:29]} Nf3+ {[%clk
00:12:21]} {[%emt 00:00:09]} 23. Kg2 {[%clk 00:01:40]} {[%emt 00:00:29]} bxc6
{[%clk 00:10:35]} {[%emt 00:01:56]} 24. Qxf6+ {[%clk 00:01:33]} {[%emt
00:00:17]} Rfxf6 {[%clk 00:10:38]} {[%emt 00:00:06]} 25. Bxf6+ Rxf6 {[%clk
00:10:47]} 26. Rd1 {[%clk 00:01:45]} {[%emt 00:00:04]} Ne5 {[%clk 00:10:17]}
{[%emt 00:00:40]} 0-1

[Event "Skol-SM i Schack 2024, Grupp A"]
[Site "Arena Varberg, Kattegattsvagen 26, Varberg, Sweden"]
[Date "2024.10.11"]
[Round "2.3"]
[White "Keskitalo, Rasmus"]
[Black "Harlin, Jacob"]
[Result "1/2-1/2"]
[TimeControl "45 minutes + 10 seconds per move from move one."]
[WhiteFideId "1768271"]
[BlackFideId "1728180"]
[WhiteElo "1752"]
[BlackElo "1919"]

1. e4 {[%clk 00:45:19]} c5 {[%clk 00:44:46]} {[%emt 00:00:35]} 2. Nf3 {[%clk
00:45:27]} d6 {[%clk 00:44:55]} {[%emt 00:00:02]} 3. d4 {[%clk 00:45:25]}
{[%emt 00:00:11]} cxd4 {[%clk 00:45:04]} {[%emt 00:00:02]} 4. Nxd4 {[%clk
00:45:34]} Nf6 {[%clk 00:45:13]} {[%emt 00:00:01]} 5. Nc3 {[%clk 00:45:42]}
{[%emt 00:00:02]} a6 {[%clk 00:45:17]} {[%emt 00:00:05]} 6. Bg5 {[%clk
00:45:32]} {[%emt 00:00:20]} e6 {[%clk 00:45:20]} {[%emt 00:00:08]} 7. f4
{[%clk 00:45:38]} {[%emt 00:00:04]} Be7 {[%clk 00:45:27]} {[%emt 00:00:03]} 8.
Qf3 {[%clk 00:45:43]} {[%emt 00:00:04]} Qc7 {[%clk 00:45:35]} {[%emt 00:00:03]}
9. O-O-O {[%clk 00:45:46]} {[%emt 00:00:06]} Nbd7 {[%clk 00:45:43]} {[%emt
00:00:03]} 10. g4 {[%clk 00:45:48]} {[%emt 00:00:07]} b5 {[%clk 00:45:50]}
{[%emt 00:00:03]} 11. Bxf6 {[%clk 00:45:51]} {[%emt 00:00:07]} Nxf6 {[%clk
00:45:57]} {[%emt 00:00:04]} 12. g5 {[%clk 00:45:57]} {[%emt 00:00:04]} Nd7
{[%clk 00:46:06]} 13. f5 {[%clk 00:45:46]} {[%emt 00:00:21]} O-O {[%clk
00:46:02]} {[%emt 00:00:14]} 14. Kb1 {[%clk 00:44:44]} {[%emt 00:01:11]} b4
{[%clk 00:43:15]} {[%emt 00:02:58]} 15. Nce2 {[%clk 00:42:32]} {[%emt
00:02:21]} e5 {[%clk 00:42:21]} {[%emt 00:01:05]} 16. Nb3 {[%clk 00:42:32]}
{[%emt 00:00:08]} f6 {[%clk 00:20:07]} {[%emt 00:22:25]} 17. gxf6 {[%clk
00:31:48]} {[%emt 00:10:54]} Bxf6 {[%clk 00:20:12]} {[%emt 00:00:06]} 18. Qd3
{[%clk 00:29:34]} {[%emt 00:02:23]} Bb7 {[%clk 00:08:55]} {[%emt 00:11:27]} 19.
Ng3 {[%clk 00:28:50]} {[%emt 00:00:53]} Nc5 {[%clk 00:08:32]} {[%emt 00:00:34]}
20. Qc4+ {[%clk 00:23:23]} {[%emt 00:05:36]} Kh8 {[%clk 00:08:19]} {[%emt
00:00:24]} 21. Qxb4 {[%clk 00:23:30]} {[%emt 00:00:03]} a5 {[%clk 00:03:56]}
{[%emt 00:04:33]} 22. Qc3 {[%clk 00:16:36]} {[%emt 00:07:04]} a4 {[%clk
00:00:36]} {[%emt 00:03:31]} 23. Nxc5 {[%clk 00:16:42]} {[%emt 00:00:03]} dxc5
{[%clk 00:00:45]} {[%emt 00:00:01]} 24. a3 {[%clk 00:15:37]} {[%emt 00:01:15]}
Rfd8 {[%clk 00:00:48]} {[%emt 00:00:07]} 25. Bc4 {[%clk 00:15:42]} {[%emt
00:00:04]} Rd4 {[%clk 00:00:43]} {[%emt 00:00:17]} 26. Rxd4 {[%clk 00:14:05]}
{[%emt 00:01:47]} exd4 {[%clk 00:00:46]} {[%emt 00:00:07]} 27. Qd3 {[%clk
00:13:51]} {[%emt 00:00:23]} Be5 {[%clk 00:00:37]} {[%emt 00:00:20]} 1/2-1/2

[Event "Skol-SM i Schack 2024, Grupp A"]
[Site "Arena Varberg, Kattegattsvagen 26, Varberg, Sweden"]
[Date "2024.10.11"]
[Round "2.4"]
[White "Kleist, Axel"]
[Black "Demeestere, Ewoud"]
[Result "1-0"]
[TimeControl "45 minutes + 10 seconds per move from move one."]
[WhiteFideId "1764322"]
[BlackFideId "1773585"]
[WhiteElo "1912"]
[BlackElo "1833"]

1. e4 {[%clk 00:45:18]} {[%emt 00:00:02]} c5 {[%clk 00:45:17]} {[%emt
00:00:02]} 2. Nf3 {[%clk 00:45:24]} {[%emt 00:00:04]} d6 {[%clk 00:45:22]}
{[%emt 00:00:06]} 3. d4 {[%clk 00:45:31]} {[%emt 00:00:03]} cxd4 {[%clk
00:45:29]} {[%emt 00:00:04]} 4. Nxd4 {[%clk 00:45:37]} {[%emt 00:00:04]} Nf6
{[%clk 00:45:34]} {[%emt 00:00:05]} 5. Nc3 {[%clk 00:45:43]} {[%emt 00:00:04]}
Nc6 {[%clk 00:45:40]} {[%emt 00:00:03]} 6. f3 {[%clk 00:41:48]} {[%emt
00:04:05]} e5 {[%clk 00:45:14]} {[%emt 00:00:36]} 7. Nb3 {[%clk 00:41:13]}
{[%emt 00:00:45]} Be6 {[%clk 00:43:59]} {[%emt 00:01:25]} 8. Nd5 {[%clk
00:37:22]} {[%emt 00:04:01]} Nxe4 {[%clk 00:41:28]} {[%emt 00:02:41]} 9. fxe4
{[%clk 00:33:27]} {[%emt 00:04:05]} Qh4+ {[%clk 00:41:32]} {[%emt 00:00:05]} 10.
Kd2 {[%clk 00:33:13]} {[%emt 00:00:24]} g6 {[%clk 00:37:58]} {[%emt 00:03:45]}
11. Qe1 {[%clk 00:26:06]} {[%emt 00:07:17]} Bh6+ {[%clk 00:37:09]} {[%emt
00:00:59]} 12. Kd1 {[%clk 00:26:10]} {[%emt 00:00:07]} Bg4+ {[%clk 00:36:10]}
{[%emt 00:01:08]} 13. Be2 {[%clk 00:26:14]} {[%emt 00:00:06]} Bxe2+ {[%clk
00:32:47]} {[%emt 00:03:33]} 14. Qxe2 {[%clk 00:26:17]} {[%emt 00:00:07]} O-O-O
{[%clk 00:32:50]} {[%emt 00:00:07]} 15. g3 {[%clk 00:22:14]} {[%emt 00:04:13]}
Qh3 {[%clk 00:32:27]} {[%emt 00:00:33]} 16. Bxh6 {[%clk 00:21:47]} {[%emt
00:00:37]} Qxh6 {[%clk 00:32:30]} {[%emt 00:00:07]} 17. c3 {[%clk 00:20:23]}
{[%emt 00:01:34]} f5 {[%clk 00:32:28]} {[%emt 00:00:12]} 18. Kc2 {[%clk
00:20:13]} {[%emt 00:00:20]} fxe4 {[%clk 00:31:08]} {[%emt 00:01:30]} 19. Raf1
{[%clk 00:20:09]} {[%emt 00:00:13]} Rhf8 {[%clk 00:30:46]} {[%emt 00:00:32]} 20.
h4 {[%clk 00:19:58]} {[%emt 00:00:22]} Kb8 {[%clk 00:29:48]} {[%emt 00:01:08]}
21. Qxe4 {[%clk 00:19:44]} {[%emt 00:00:24]} Rc8 {[%clk 00:28:38]} {[%emt
00:01:20]} 22. Kb1 {[%clk 00:19:09]} {[%emt 00:00:46]} g5 {[%clk 00:28:06]}
{[%emt 00:00:41]} 23. Qe3 {[%clk 00:17:51]} {[%emt 00:01:27]} Qe6 {[%clk
00:27:13]} {[%emt 00:01:03]} 24. Qe4 {[%clk 00:16:16]} {[%emt 00:01:45]} gxh4
{[%clk 00:26:05]} {[%emt 00:01:19]} 25. gxh4 {[%clk 00:16:16]} {[%emt
00:00:10]} Rg8 {[%clk 00:25:17]} {[%emt 00:00:58]} 26. Nf6 {[%clk 00:14:42]}
{[%emt 00:01:44]} Rg7 {[%clk 00:22:02]} {[%emt 00:03:24]} 27. Qd5 {[%clk
00:14:14]} {[%emt 00:00:39]} Qe7 {[%clk 00:21:05]} {[%emt 00:01:05]} 28. Nd2
{[%clk 00:12:25]} {[%emt 00:02:01]} Nd8 {[%clk 00:19:36]} {[%emt 00:01:38]} 29.
Nc4 {[%clk 00:11:09]} {[%emt 00:01:28]} Nf7 {[%clk 00:18:14]} {[%emt 00:01:31]}
30. Ne4 {[%clk 00:11:15]} {[%emt 00:00:04]} Rc6 {[%clk 00:17:40]} {[%emt
00:00:44]} 31. Rf6 {[%clk 00:10:56]} {[%emt 00:00:29]} 1-0

[ePGN "0.1;DGT LiveChess/2.2.6"]

[Event "Skol-SM i Schack 2024, Grupp A"]
[Site "Arena Varberg, Kattegattsvagen 26, Varberg, Sweden"]
[Date "2024.10.11"]
[Round "1.1"]
[White "Frank, Anton"]
[Black "Johansson, Sigge"]
[Result "1-0"]
[TimeControl "45 minutes + 10 seconds per move from move one."]
[WhiteTitle "CM"]
[WhiteFideId "1752383"]
[BlackFideId "1742612"]
[WhiteElo "2110"]
[BlackElo "1746"]

1. e4 {[%clk 00:44:59]} {[%emt 00:00:21]} c5 {[%clk 00:45:11]} {[%emt
00:00:08]} 2. Nf3 {[%clk 00:45:06]} {[%emt 00:00:02]} g6 {[%clk 00:45:17]}
{[%emt 00:00:05]} 3. d4 {[%clk 00:45:14]} {[%emt 00:00:02]} cxd4 {[%clk
00:45:21]} {[%emt 00:00:06]} 4. Nxd4 {[%clk 00:45:22]} {[%emt 00:00:01]} Bg7
{[%clk 00:45:26]} {[%emt 00:00:06]} 5. c4 {[%clk 00:45:27]} {[%emt 00:00:05]}
Nc6 {[%clk 00:45:31]} {[%emt 00:00:05]} 6. Be3 {[%clk 00:45:35]} {[%emt
00:00:02]} Nf6 {[%clk 00:45:35]} {[%emt 00:00:06]} 7. Nc3 {[%clk 00:45:43]}
{[%emt 00:00:02]} O-O {[%clk 00:45:36]} {[%emt 00:00:09]} 8. Be2 {[%clk
00:45:50]} {[%emt 00:00:02]} e6 {[%clk 00:44:49]} {[%emt 00:00:57]} 9. Ndb5
{[%clk 00:45:44]} {[%emt 00:00:17]} b6 {[%clk 00:42:34]} {[%emt 00:02:26]} 10.
O-O {[%clk 00:44:27]} {[%emt 00:01:26]} Bb7 {[%clk 00:40:18]} {[%emt 00:02:26]}
11. Nd6 {[%clk 00:42:39]} {[%emt 00:01:58]} Qc7 {[%clk 00:40:20]} {[%emt
00:00:08]} 12. f4 {[%clk 00:39:58]} {[%emt 00:02:51]} Ne7 {[%clk 00:34:53]}
{[%emt 00:05:36]} 13. e5 {[%clk 00:35:18]} {[%emt 00:04:51]} Ne8 {[%clk
00:34:34]} {[%emt 00:00:29]} 14. Nxb7 {[%clk 00:34:21]} {[%emt 00:01:07]} Qxb7
{[%clk 00:34:37]} {[%emt 00:00:07]} 15. Bf3 {[%clk 00:34:25]} {[%emt 00:00:06]}
Nc6 {[%clk 00:34:39]} {[%emt 00:00:08]} 16. b4 {[%clk 00:34:13]} {[%emt
00:00:22]} Qc8 {[%clk 00:32:10]} {[%emt 00:02:39]} 17. b5 {[%clk 00:32:56]}
{[%emt 00:01:27]} Nxe5 {[%clk 00:30:24]} {[%emt 00:01:56]} 18. fxe5 {[%clk
00:31:20]} {[%emt 00:01:45]} Rb8 {[%clk 00:28:52]} {[%emt 00:01:43]} 19. Bd4
{[%clk 00:27:28]} {[%emt 00:04:02]} Qxc4 {[%clk 00:27:27]} {[%emt 00:01:36]} 20.
Be2 {[%clk 00:27:04]} {[%emt 00:00:33]} Qc8 {[%clk 00:27:29]} {[%emt 00:00:07]}
21. Ne4 {[%clk 00:27:01]} {[%emt 00:00:13]} Rb7 {[%clk 00:25:42]} {[%emt
00:01:57]} 22. Rc1 {[%clk 00:25:53]} {[%emt 00:01:19]} Rc7 {[%clk 00:25:45]}
{[%emt 00:00:07]} 23. Qd2 {[%clk 00:26:01]} {[%emt 00:00:02]} Rxc1 {[%clk
00:25:23]} {[%emt 00:00:32]} 24. Rxc1 {[%clk 00:26:06]} {[%emt 00:00:06]} Qb8
{[%clk 00:25:30]} {[%emt 00:00:03]} 25. Qc3 {[%clk 00:23:51]} {[%emt 00:02:24]}
h6 {[%clk 00:23:34]} {[%emt 00:02:06]} 26. Bf3 {[%clk 00:19:52]} {[%emt
00:04:10]} Kh7 {[%clk 00:23:11]} {[%emt 00:00:32]} 27. a4 {[%clk 00:19:44]}
{[%emt 00:00:18]} Kg8 {[%clk 00:23:15]} {[%emt 00:00:06]} 28. h4 {[%clk
00:18:58]} {[%emt 00:00:56]} Kh7 {[%clk 00:23:12]} {[%emt 00:00:13]} 29. g4
{[%clk 00:15:45]} {[%emt 00:03:23]} Kg8 {[%clk 00:23:05]} {[%emt 00:00:17]} 30.
g5 {[%clk 00:14:51]} {[%emt 00:01:04]} h5 {[%clk 00:23:09]} {[%emt 00:00:06]}
31. Bg2 {[%clk 00:14:16]} {[%emt 00:00:45]} Kh8 {[%clk 00:22:07]} {[%emt
00:01:11]} 32. Nf6 {[%clk 00:13:41]} {[%emt 00:00:45]} d6 {[%clk 00:20:50]}
{[%emt 00:01:28]} 33. Nd7 {[%clk 00:12:01]} {[%emt 00:01:50]} 1-0

[Event "Skol-SM i Schack 2024, Grupp A"]
[Site "Arena Varberg, Kattegattsvagen 26, Varberg, Sweden"]
[Date "2024.10.11"]
[Round "1.2"]
[White "Persson Holm, Simon"]
[Black "Schriever-Abeln, Marius"]
[Result "1-0"]
[TimeControl "45 minutes + 10 seconds per move from move one."]
[WhiteFideId "1744380"]
[BlackFideId "1752650"]
[WhiteElo "1737"]
[BlackElo "2009"]

1. d4 {[%clk 00:45:19]} Nf6 {[%clk 00:45:17]} {[%emt 00:00:03]} 2. c4 {[%clk
00:45:23]} {[%emt 00:00:06]} e6 {[%clk 00:45:26]} {[%emt 00:00:01]} 3. g3
{[%clk 00:45:27]} {[%emt 00:00:06]} d5 {[%clk 00:45:33]} {[%emt 00:00:03]} 4.
Bg2 {[%clk 00:45:30]} {[%emt 00:00:06]} Bb4+ {[%clk 00:45:05]} {[%emt
00:00:39]} 5. Bd2 {[%clk 00:45:31]} {[%emt 00:00:09]} a5 {[%clk 00:44:37]}
{[%emt 00:00:38]} 6. Nf3 {[%clk 00:45:13]} {[%emt 00:00:29]} O-O {[%clk
00:44:33]} {[%emt 00:00:13]} 7. O-O {[%clk 00:45:17]} {[%emt 00:00:06]} dxc4
{[%clk 00:43:54]} {[%emt 00:00:49]} 8. Bxb4 {[%clk 00:42:31]} {[%emt 00:02:55]}
axb4 {[%clk 00:43:55]} {[%emt 00:00:10]} 9. Ne5 {[%clk 00:42:30]} {[%emt
00:00:11]} Nd5 {[%clk 00:40:30]} {[%emt 00:03:35]} 10. Nxc4 {[%clk 00:41:54]}
{[%emt 00:00:45]} b5 {[%clk 00:40:01]} {[%emt 00:00:40]} 11. Ne5 {[%clk
00:41:43]} {[%emt 00:00:21]} Bb7 {[%clk 00:38:31]} {[%emt 00:01:40]} 12. Qd3
{[%clk 00:40:46]} {[%emt 00:01:07]} f6 {[%clk 00:34:08]} {[%emt 00:04:33]} 13.
Nf3 {[%clk 00:38:51]} {[%emt 00:02:03]} Qd7 {[%clk 00:32:03]} {[%emt 00:02:16]}
14. Nbd2 {[%clk 00:37:42]} {[%emt 00:01:19]} Rd8 {[%clk 00:27:59]} {[%emt
00:04:15]} 15. Nb3 {[%clk 00:37:03]} {[%emt 00:00:49]} Na6 {[%clk 00:27:06]}
{[%emt 00:01:03]} 16. Rac1 {[%clk 00:35:00]} {[%emt 00:02:12]} Ra7 {[%clk
00:24:41]} {[%emt 00:02:35]} 17. Rc2 {[%clk 00:31:31]} {[%emt 00:03:39]} Nb6
{[%clk 00:22:32]} {[%emt 00:02:19]} 18. Na5 {[%clk 00:29:46]} {[%emt 00:01:55]}
Bd5 {[%clk 00:19:42]} {[%emt 00:03:00]} 19. Nc6 {[%clk 00:20:47]} {[%emt
00:09:10]} Bxc6 {[%clk 00:16:31]} {[%emt 00:03:21]} 20. Rxc6 {[%clk 00:20:37]}
{[%emt 00:00:20]} Qxc6 {[%clk 00:13:57]} {[%emt 00:02:44]} 21. Ng5 {[%clk
00:20:19]} {[%emt 00:00:27]} Qxg2+ {[%clk 00:12:10]} {[%emt 00:01:57]} 22. Kxg2
{[%clk 00:20:20]} {[%emt 00:00:09]} fxg5 {[%clk 00:12:19]} {[%emt 00:00:02]} 23.
Qxb5 {[%clk 00:18:48]} {[%emt 00:01:42]} Raa8 {[%clk 00:10:29]} {[%emt
00:01:59]} 24. Qxg5 {[%clk 00:17:01]} {[%emt 00:01:57]} Rxd4 {[%clk 00:09:19]}
{[%emt 00:01:20]} 25. Qe5 {[%clk 00:15:54]} {[%emt 00:01:18]} Rd6 {[%clk
00:08:54]} {[%emt 00:00:35]} 26. Rc1 {[%clk 00:15:31]} {[%emt 00:00:33]} Nd5
{[%clk 00:07:24]} {[%emt 00:01:40]} 27. e4 {[%clk 00:14:16]} {[%emt 00:01:25]}
Nf6 {[%clk 00:05:07]} {[%emt 00:02:28]} 28. Rxc7 {[%clk 00:13:33]} {[%emt
00:00:52]} Rad8 {[%clk 00:04:07]} {[%emt 00:01:10]} 29. Re7 {[%clk 00:12:35]}
{[%emt 00:01:07]} Nb8 {[%clk 00:03:09]} {[%emt 00:01:09]} 30. Qg5 {[%clk
00:10:36]} {[%emt 00:02:08]} Ne8 {[%clk 00:02:30]} {[%emt 00:00:49]} 31. Qh5
{[%clk 00:10:19]} {[%emt 00:00:27]} Nd7 {[%clk 00:00:27]} {[%emt 00:02:13]} 32.
Qf7+ {[%clk 00:10:03]} {[%emt 00:00:26]} Kh8 {[%clk 00:00:33]} {[%emt
00:00:04]} 33. Rxe8+ {[%clk 00:10:03]} {[%emt 00:00:09]} 1-0